Workbook

Sheet Contents
B2: Contents
B4: Guide | C4: Definitions & explanations
B6: Data | C6: …
B8: Graph 1 | C8: =Data!A1 -> Consolidated debt in percent of GDP
B10: Graph 2 | C10: …
B12: Graph 3 | C12: …
B14: Graph 4 | C14: …

Sheet Guide
B2: Guide
B8: Definitions & explanations
C10: The figure shows the changes in the consolidated debt for the sectors S11 Non-financial corporations, S14 Households, S15 Non-profit institutions serving households, S13 General Government and a summation of S11, S14 and S15. It corresponds to Eurostat’s MIP (Macroeconomic Imbalance Procedure) - indicator Private debt in percent of GDP-consolidated annual data. The financial instruments included are short-term securities, long-term securities and loans. The instruments not included are deposits, shares, other equity, mutual funds, insurance savings, trade credits and other accounts receivable/payable. As far as the general government sector is concerned, it is the nominal debt that is presented and not the market value debt, which is the norm for the Financial Accounts and shown for the other sectors in the figure. In addition, deposits are also included in the liability for general government. This corresponds to Eurostat's MIP (Macroeconomic Imbalance Procedure) - indicator for general government gross debt (EDP) in percent of GDP-consolidated annual data. Consolidation means that assets/debts that the sector has towards its own sector are deducted. The values for the debt of general government refer to Maastricht debt, at nominal value, and is updated in connection to the financial accounts publication referring to quarters 1 and 3 every year. In connection to quarters 2 and 4, the Maastricht debt is updated in connection to EDP, i.e. last March and last September each year (as well as, possible updates around 20 April and 20 October). Thus, more updated data for general government may be available on the website for EDP, http://www.scb.se/NR0108/, during certain periods.

Sheet Data
A1: Consolidated debt in percent of GDP
A2: Data up to and including 2023
B3: Consolidated debts in percent of GDP, percent | F3: SEK millions
B4: Non-financial corporations | C4: General government | D4: Households incl. non-profit institutions serving households | E4: Non-financial corporations and households incl. non-profit institutions serving households | F4: GDP, current prices | G4: Non-financial corporations | H4: General government | I4: Households incl. non-profit institutions serving households | J4: Non-financial corporations and households incl. non-profit institutions serving households
A5: Konsoliderade skulder i förhållande till BNP
A6: Data t.o.m 2023 | F6: miljoner kronor
B7: Konsoliderade skulder i förhållande till BNP, procent
B8: Icke-finansiella bolag | C8: Offentlig förvaltning | D8: Hushåll inkl. hushållens icke vinstdrivande organisationer | E8: Icke-finansiella bolag och hushåll inkl. hushållens icke vinstdrivande organisationer | F8: BNP, löpande priser | G8: Icke-finansiella bolag | H8: Offentlig förvaltning | I8: Hushåll inkl. hushållens icke vinstdrivande organisationer | J8: Icke-finansiella bolag och hushåll inkl. hushållens icke vinstdrivande organisationer
A9: 1995 | B9: 0.7467737376 | C9: 0.6869983999 | D9: 0.436032501 | E9: 1.182806239 | F9: 1904968 | G9: 1423928 | H9: 1309950 | I9: 831415 | J9: 2255343
A10: 1996 | B10: 0.7354395804 | C10: 0.6905615012 | D10: 0.4354125925 | E10: 1.170852173 | F10: 1957833 | G10: 1438839 | H10: 1351038 | I10: 851856 | J10: 2290695
A11: 1997 | B11: 0.7962431903 | C11: 0.666382874 | D11: 0.439991032 | E11: 1.236234222 | F11: 2048077 | G11: 1630124 | H11: 1364265 | I11: 900780 | J11: 2530904
A12: 1998 | B12: 0.829706838 | C12: 0.6582793946 | D12: 0.444231399 | E12: 1.273938237 | F12: 2153545 | G12: 1786280 | H12: 1417213 | I12: 956388 | J12: 2742668
A13: 1999 | B13: 0.8719082497 | C13: 0.6050605566 | D13: 0.4586388836 | E13: 1.330547133 | F13: 2266545 | G13: 1974431 | H13: 1370156 | I13: 1038585 | J13: 3013016
A14: 2000 | B14: 0.9023159262 | C14: 0.5034788101 | D14: 0.4720941502 | E14: 1.374410076 | F14: 2408790 | G14: 2172911 | H14: 1212453 | I14: 1136874 | J14: 3309785
A15: 2001 | B15: 0.9498148962 | C15: 0.5189706881 | D15: 0.4933613076 | E15: 1.443176204 | F15: 2504799 | G15: 2378077 | H15: 1299363 | I15: 1235244 | J15: 3613321
A16: 2002 | B16: 0.9447634948 | C16: 0.4980572182 | D16: 0.5126665681 | E16: 1.457430063 | F16: 2603441 | G16: 2454809 | H16: 1294120 | I16: 1332080 | J16: 3786889
A17: 2003 | B17: 0.8919051277 | C17: 0.4927312264 | D17: 0.5368006744 | E17: 1.428705802 | F17: 2701423 | G17: 2411285 | H17: 1332124 | I17: 1451268 | J17: 3862553
A18: 2004 | B18: 0.8607657284 | C18: 0.4845265024 | D18: 0.5665866015 | E18: 1.42735233 | F18: 2825999 | G18: 2436109 | H18: 1371304 | I18: 1603550 | J18: 4039659
A19: 2005 | B19: 0.8984526208 | C19: 0.4868845496 | D19: 0.6060929656 | E19: 1.504545586 | F19: 2927141 | G19: 2633418 | H19: 1427100 | I19: 1776510 | J19: 4409928
A20: 2006 | B20: 0.9022253488 | C20: 0.4359595575 | D20: 0.6296992505 | E20: 1.531924599 | F20: 3117514 | G20: 2816424 | H20: 1360909 | I20: 1965712 | J20: 4782136
A21: 2007 | B21: 1.021553918 | C21: 0.3889671287 | D21: 0.6482634888 | E21: 1.669817407 | F21: 3312151 | G21: 3391823 | H21: 1291507 | I21: 2152415 | J21: 5544238
A22: 2008 | B22: 1.19898759 | C22: 0.3749783501 | D22: 0.6824983376 | E22: 1.881485927 | F22: 3391889 | G22: 4091230 | H22: 1279487 | I22: 2328857 | J22: 6420087
A23: 2009 | B23: 1.231407469 | C23: 0.4073238482 | D23: 0.755871227 | E23: 1.987278696 | F23: 3324151 | G23: 4114289 | H23: 1360929 | I23: 2525492 | J23: 6639781
A24: 2010 | B24: 1.109534386 | C24: 0.3810245241 | D24: 0.7592202331 | E24: 1.868754619 | F24: 3551531 | G24: 3964991 | H24: 1370640 | I24: 2713135 | J24: 6678126
A25: 2011 | B25: 1.114905825 | C25: 0.3716379575 | D25: 0.7649926701 | E25: 1.879898495 | F25: 3704835 | G25: 4156239 | H25: 1395605 | I25: 2851820 | J25: 7008059
A26: 2012 | B26: 1.116746716 | C26: 0.3750701961 | D26: 0.7929184635 | E26: 1.90966518 | F26: 3724512 | G26: 4180054 | H26: 1415032 | I26: 2967962 | J26: 7148016
A27: 2013 | B27: 1.126341765 | C27: 0.4025483752 | D27: 0.8119832965 | E27: 1.938325061 | F27: 3804994 | G27: 4283481 | H27: 1551553 | I27: 3103945 | J27: 7387426
A28: 2014 | B28: 1.109377544 | C28: 0.4500722563 | D28: 0.8214224353 | E28: 1.930799979 | F28: 3963683 | G28: 4429326 | H28: 1810859 | I28: 3279718 | J28: 7709044
A29: 2015 | B29: 1.08439022 | C29: =H29/F29 -> 0.4445622314 | D29: =I29/F29 -> 0.8300450523 | E29: 1.908838931 | F29: 4231745 | G29: 4643058 | H29: 1881274 | I29: 3512539 | J29: 8155597
A30: 2016 | B30: 1.068410618 | C30: =H30/F30 -> 0.4278643351 | D30: =I30/F30 -> 0.8593598248 | E30: 1.925376515 | F30: 4402732 | G30: 4774464 | H30: 1883772 | I30: 3783531 | J30: 8557995
A31: 2017 | B31: 1.114588158 | C31: 0.4155842569 | D31: 0.8802445697 | E31: 1.986800052 | F31: 4582907 | G31: 5215165 | H31: 1904584 | I31: 4034079 | J31: 9249244
A32: 2018 | B32: =G32/F32 -> 1.084271541 | C32: 0.3980970283 | D32: 0.8875200478 | E32: 1.950045005 | F32: 4792294 | G32: 5196148 | H32: 1907798 | I32: 4253257 | J32: 9449405
A33: 2019 | B33: =G33/F33 -> 1.105561938 | C33: 0.3569435474 | D33: 0.8879913809 | E33: =J33/F33 -> 1.993553319 | F33: 5033443 | G33: 5564783 | H33: 1796655 | I33: 4469654 | J33: 10034437
A34: 2020 | B34: =G34/F34 -> 1.177341944 | C34: 0.4012975161 | D34: 0.9397800588 | E34: =J34/F34 -> 2.117122003 | F34: 5020978 | G34: 5911408 | H34: 2014906 | I34: 4718615 | J34: 10630023
A35: 2021 | B35: =G35/F35 -> 1.211781749 | C35: =H35/F35 -> 0.3667687977 | D35: 0.9222084819 | E35: 2.133990231 | F35: 5464876 | G35: 6622237 | H35: 2004346 | I35: 5039755 | J35: 11661992
A36: 2022 | B36: 1.214184792 | C36: =H36/F36 -> 0.336175459 | D36: =I36/F36 -> 0.8912518237 | E36: =J36/F36 -> 2.105436616 | F36: 5865211 | G36: 7121450 | H36: 1971740 | I36: 5227380 | J36: 12348830
A37: 2023 | B37: =G37/F37 -> 1.170864033 | C37: =H37/F37 -> 0.3145334041 | D37: =I37/F37 -> 0.8461938816 | E37: =J37/F37 -> 2.017057915 | F37: 6206034 | G37: 7266422 | H37: 1952005 | I37: 5251508 | J37: 12517930

Sheet Graph 1
B1: Consolidated debt in percent of GDP
